Workbook

Sheet Аналіз рентабельності
B2: Аналіз прибутковості клієнтів
B3: 20 січня 2013 р. | D3: НАЗВА КОМПАНІЇ
B6: Активність клієнтів | C6: Клієнт 1 | D6: Клієнт 2 | E6: Клієнт 3 | F6: Разом
B7: Кількість активних клієнтів на початок періоду | C7: 5 | D7: 8 | E7: 8 | F7: =SUM(C7:E7) -> 21
B8: Кількість нових клієнтів | C8: 2 | D8: 4 | E8: 4 | F8: =SUM(C8:E8) -> 10
B9: Кількість втрачених клієнтів або таких, термін дії угоди з якими завершено | C9: -1 | D9: -2 | E9: -2 | F9: -5
B10: Кількість активних клієнтів на кінець періоду | C10: =SUBTOTAL(109,'Аналіз рентабельності'!$C$7:$C$9) -> 6 | D10: =SUBTOTAL(109,'Аналіз рентабельності'!$D$7:$D$9) -> 10 | E10: =SUBTOTAL(109,'Аналіз рентабельності'!$E$7:$E$9) -> 10 | F10: 26
B12: Аналіз прибутковості
B13: Прибуток на сегмент | C13: 1500000 | D13: 1800000 | E13: 2500000 | F13: =SUM('Аналіз рентабельності'!$C13:$E13) -> 5800000
B14: Ваговий відсоток | C14: =C13/$F$13 -> 0.2586206897 | D14: =D13/$F$13 -> 0.3103448276 | E14: 0.4310344828 | F14: =SUM(C14:E14) -> 1
B16: Вартість продажів
B17: Поточні витрати на обслуговування та підтримку | C17: 1000000 | D17: 1400000 | E17: 1400000 | F17: =SUM('Аналіз рентабельності'!$C17:$E17) -> 3800000
B18: Інші прямі витрати на обслуговування клієнтів | C18: 200000 | D18: 100000 | E18: 100000 | F18: =SUM('Аналіз рентабельності'!$C18:$E18) -> 400000
B19: Загальна вартість продажів | C19: =SUBTOTAL(109,'Аналіз рентабельності'!$C$17:$C$18) -> 1200000 | D19: =SUBTOTAL(109,'Аналіз рентабельності'!$D$17:$D$18) -> 1500000 | E19: =SUBTOTAL(109,'Аналіз рентабельності'!$E$17:$E$18) -> 1500000 | F19: =SUBTOTAL(109,'Аналіз рентабельності'!$F$17:$F$18) -> 4200000
B20: Валовий прибуток | C20: =C13-'Аналіз рентабельності'!$C$19 -> 300000 | D20: =D13-'Аналіз рентабельності'!$D$19 -> 300000 | E20: =E13-'Аналіз рентабельності'!$E$19 -> 1000000 | F20: =F13-'Аналіз рентабельності'!$F$19 -> 1600000
B21: Ваговий відсоток | C21: =MAX(0,MIN(1,C20/$F$20)) -> 0.1875 | D21: =MAX(0,MIN(1,D20/$F$20)) -> 0.1875 | E21: 0.625 | F21: =SUM('Аналіз рентабельності'!$C21:$E21) -> 1
B23: Інші витрати
B24: Залучення клієнтів | C24: 105000 | D24: 120000 | E24: 235000 | F24: =SUM('Аналіз рентабельності'!$C24:$E24) -> 460000
B25: Клієнтурний маркетинг | C25: 150000 | D25: 125000 | E25: 275000 | F25: =SUM('Аналіз рентабельності'!$C25:$E25) -> 550000
B26: Завершення терміну дії угоди | C26: 80000 | D26: 190000 | E26: 140000 | F26: =SUM('Аналіз рентабельності'!$C26:$E26) -> 410000
B27: Загальні витрати | C27: =SUBTOTAL(109,'Аналіз рентабельності'!$C$24:$C$26) -> 335000 | D27: =SUBTOTAL(109,'Аналіз рентабельності'!$D$24:$D$26) -> 435000 | E27: =SUBTOTAL(109,'Аналіз рентабельності'!$E$24:$E$26) -> 650000 | F27: =SUBTOTAL(109,'Аналіз рентабельності'!$F$24:$F$26) -> 1420000
B29: Дохід від клієнтів за сегментами | C29: =C20-C27 -> -35000 | D29: =D20-D27 -> -135000 | E29: =E20-E27 -> 350000 | F29: =F20-'Аналіз рентабельності'!$F$27 -> 180000
B30: Ваговий відсоток | C30: =MAX(0,MIN(1,C29/$F$29)) -> 0 | D30: =MAX(0,MIN(1,D29/$F$29)) -> 0 | E30: 1 | F30: =SUM('Аналіз рентабельності'!$C30:$E30) -> 1
B32: Зведені показники
B33: Середня вартість залучення одного клієнта | C33: =C24/C8 -> 52500 | D33: =D24/D8 -> 30000 | E33: =E24/E8 -> 58750
B34: Середня вартість завершення угоди з одним клієнтом | C34: =-C26/C9 -> 80000 | D34: =-D26/D9 -> 95000 | E34: =-E26/E9 -> 70000
B35: Середня маркетингова вартість одного активного клієнта | C35: =C25/'Аналіз рентабельності'!$C$10 -> 25000 | D35: =D25/'Аналіз рентабельності'!$D$10 -> 12500 | E35: =E25/'Аналіз рентабельності'!$E$10 -> 27500
B36: Середній дохід або збиток від одного клієнта | C36: =C29/'Аналіз рентабельності'!$C$10 -> -5833.333333 | D36: =D29/'Аналіз рентабельності'!$D$10 -> -13500 | E36: =E29/'Аналіз рентабельності'!$E$10 -> 35000

Sheet Діаграма зведених показників
B2: Зведені показники по одному клієнту
B3: =ДатаЗвіту -> 20 січня 2013 р. | R3: =НазваКомпанії -> НАЗВА КОМПАНІЇ
